[Event "NOR-ch Youth 2019"]
[Site "Skien"]
[Date "2019.11.09"]
[Round "5.23"]
[White "Haug, Havard"]
[Black "Myagmarsuren, Evsuld"]
[Result "0-1"]
[ECO "B22"]
[WhiteElo "1544"]
[BlackElo "1471"]
[Annotator "NA RC"]
[PlyCount "94"]
[EventDate "2019.11.08"]
[EventType "swiss"]
[EventCountry "NOR"]
[SourceTitle "playchess.com"]
[Source "ChessBase"]
[SourceQuality "1"]
[TimeControl "5400+30"]

1. e4 {[%emt 0:00:00]} c5 {[%emt 0:00:00]} 2. c3 {[%emt 0:00:00]} d5 {[%emt 0:00:10]} 3. exd5 {[%emt 0:00:00]} Qxd5 {[%emt 0:00:36]} 4. d4 {[%emt 0:00:08]} Nf6 {[%emt 0:00:46]} 5. Nf3 {[%emt 0:00:43]} Bg4 {[%emt 0:00:21]} 6. Be2 {[%emt 0:00:10]} Nc6 {[%emt 0:00:32]} 7. O-O {[%emt 0:00:09]} e6 {[%emt 0:01:21]} 8. Be3 {[%emt 0:00:21]} cxd4 {[%emt 0:03:42]} 9. cxd4 {[%emt 0:01:27]} Bd6 {[%emt 0:04:18]} 10. Nc3 {[%emt 0:00:55]} Qh5 {[%emt 0:13:06]} 11. Nb5 {[%emt 0:03:28]} Bxh2+ {[%emt 0:10:59]} 12. Nxh2 {[%emt 0:01:42]} Bxe2 {[%emt 0:00:13]} 13. Qa4 {[%emt 0:00:31]} Bxb5 {[%emt 0:00:09]} 14. Qb3 {[%emt 0:00:24]} Qd5 {[%emt 0:03:24]} 15. Rfc1 {[%emt 0:02:42]} Qxb3 {[%emt 0:01:00]} 16. axb3 {[%emt 0:00:06]} O-O {[%emt 0:00:55]} 17. Rc5 {[%emt 0:00:07]} a6 {[%emt 0:01:55]} 18. Nf3 {[%emt 0:01:15]} Nd5 {[%emt 0:04:18]} 19. g3 {[%emt 0:01:04]} h6 {[%emt 0:01:23]} 20. Kg2 {[%emt 0:00:47]} f5 {[%emt 0:01:54]} 21. Ne5 {[%emt 0:00:34]} Nxe5 {[%emt 0:01:41]} 22. dxe5 {[%emt 0:00:05]} Rac8 {[%emt 0:00:45]} 23. Rac1 {[%emt 0:02:19]} Nxe3+ {[%emt 0:04:33]} 24. fxe3 {[%emt 0:00:08]} Rxc5 {[%emt 0:00:10]} 25. Rxc5 {[%emt 0:00:08]} Bc6+ {[%emt 0:00:08]} 26. Kf2 {[%emt 0:01:16]} Rd8 {[%emt 0:00:21]} 27. Ke2 {[%emt 0:00:43]} Rd5 {[%emt 0:00:21]} 28. Rc1 {[%emt 0:01:58]} Rxe5 {[%emt 0:00:24]} 29. Rd1 {[%emt 0:01:46]} Rb5 {[%emt 0:02:35]} 30. Kd2 {[%emt 0:00:30]} Rd5+ {[%emt 0:00:12]} 31. Kc2 {[%emt 0:00:08]} Rxd1 {[%emt 0:00:08]} 32. Kxd1 {[%emt 0:00:06]} Kf7 {[%emt 0:00:17]} 33. Kd2 {[%emt 0:00:07]} Kf6 {[%emt 0:00:06]} 34. b4 {[%emt 0:00:06]} Ke5 {[%emt 0:00:31]} 35. Kd3 {[%emt 0:00:07]} Bb5+ {[%emt 0:00:10]} 36. Kc3 {[%emt 0:00:14]} Ke4 {[%emt 0:00:20]} 37. Kb3 {[%emt 0:00:43]} g5 {[%emt 0:00:19]} 38. Ka3 {[%emt 0:00:14]} h5 {[%emt 0:00:40]} 39. Ka2 {[%emt 0:00:07]} h4 {[%emt 0:00:07]} 40. gxh4 {[%emt 0:00:29]} gxh4 {[%emt 0:00:13]} 41. b3 {[%emt 0:00:12]} h3 {[%emt 0:00:47]} 42. Kb2 {[%emt 0:00:24]} h2 {[%emt 0:00:10]} 43. Ka2 {[%emt 0:00:06]} Kd3 {[%emt 0:00:29]} 44. e4 {[%emt 0:00:10]} Kc2 {[%emt 0:00:30]} 45. exf5 {[%emt 0:01:27]} h1=Q {[%emt 0:00:08]} 46. fxe6 {[%emt 0:01:00]} Qb1+ {[%emt 0:00:09]} 47. Ka3 {[%emt 0:00:11]} Qa1# {[%emt 0:00:07]} 0-1

[Event "NOR-ch Youth 2019"]
[Site "Skien"]
[Date "2019.11.10"]
[Round "6.5"]
[White "Leonhardsen, Vebjorn Maanum"]
[Black "Opseth, Oliver"]
[Result "1/2-1/2"]
[ECO "A29"]
[WhiteElo "1836"]
[BlackElo "1795"]
[Annotator "NA RC"]
[PlyCount "97"]
[EventDate "2019.11.08"]
[EventType "swiss"]
[EventCountry "NOR"]
[SourceTitle "playchess.com"]
[Source "ChessBase"]
[SourceQuality "1"]
[TimeControl "5400+30"]

{[%evp 36,96,141,67,121,113,127,0,118,-31,-23,-27,282,138,144,58,43,46,58,87,353,358,366,172,365,-148,160,0,115,108,200,185,856,211,205,157,174,173,191,214,225,172,173,139,365,176,313,16,181,0,305,320,327,341,326,295,327,306,311,343,381,298,329]} 1. c4 {[%emt 0:00:00]} e5 {[%emt 0:00:00]} 2. Nc3 {[%emt 0:00:22]} Nf6 {[%emt 0:00:18]} 3. Nf3 {[%emt 0:01:11]} d6 {[%emt 0:02:27]} 4. g3 {[%emt 0:02:54]} Be7 {[%emt 0:02:33]} 5. Bg2 {[%emt 0:00:06]} O-O {[%emt 0:01:41]} 6. O-O {[%emt 0:00:58]} h6 {[%emt 0:05:28]} 7. d3 {[%emt 0:05:43]} Nc6 {[%emt 0:01:56]} 8. Bd2 {[%emt 0:00:46] A29: English Opening: Four Knights Variation with 4 g3} (8. Rb1 Be6 9. b4 Qd7 10. b5 Na5 11. c5 a6 12. cxd6 Bxd6 13. d4 exd4 14. Qxd4 axb5 15. Rxb5 Be7 16. Bf4 {0-1 (25) Ekdyshman,M (2362)-Vajda,L (2554) Zalakaros 2015}) 8... Bg4 {[%emt 0:01:27]} 9. Rc1 $146 {[%emt 0:01:45]} ({Predecessor:} 9. a3 Qd7 10. Re1 Nd8 11. b4 c6 12. Qb3 Ne6 13. e3 Nh7 14. Ne2 Nhg5 15. Nh4 Nh3+ {0-1 (32) Wild,K (1885)-Jeraj,Z (2123) St Veit 2009}) 9... Qd7 {[%emt 0:01:53]} 10. Re1 {[%emt 0:05:36]} Rae8 {[%emt 0:07:59]} 11. Be3 {[%emt 0:04:07]} Nh5 {[%emt 0:07:31]} 12. d4 {[%emt 0:14:05]} e4 {[%emt 0:01:09]} 13. Nxe4 {[%emt 0:05:24]} f5 {[%emt 0:00:28]} 14. Nc3 {[%emt 0:00:11]} f4 {[%emt 0:01:39]} 15. Bd2 {[%emt 0:02:36]} g5 {[%emt 0:03:37]} 16. Nd5 {[%emt 0:12:28]} Bh3 {[%emt 0:06:40]} 17. Qc2 {[%emt 0:06:33]} Bf5 {[%emt 0:00:54]} 18. Qd1 {[%emt 0:00:52]} Bh3 $1 {[%emt 0:05:23]} 19. Bc3 {[%emt 0:10:00]} (19. gxf4 $16 Kh8 20. fxg5) 19... Bd8 $1 $11 {[%emt 0:02:14] remains equal.} 20. Qc2 {[%emt 0:03:04]} Bf5 {[%emt 0:00:46]} 21. Qd1 {[%emt 0:02:14]} (21. Qa4 $14) 21... Be4 {[%emt 0:01:11]} 22. Ne5 {[%emt 0:14:47]} (22. e3 $16) 22... dxe5 {[%emt 0:03:48]} 23. Bxe4 {[%emt 0:00:10]} Qf7 $2 {[%emt 0:06:46] [#]} ({Don't take} 23... exd4 24. Bg6 $17) (23... fxg3 $11 24. fxg3 exd4) 24. dxe5 {[%emt 0:03:53]} (24. e3 $1 $18) 24... Nxe5 {[%emt 0:07:38]} 25. Bxe5 {[%emt 0:00:36]} ({White should play} 25. Rf1 $16) 25... Rxe5 {[%emt 0:00:05]} 26. Bf3 {[%emt 0:00:38]} g4 {[%emt 0:03:38]} 27. Bxg4 {[%emt 0:01:51]} Rg5 $2 {[%emt 0:00:18]} (27... fxg3 $16 28. fxg3 c6) 28. Bxh5 $1 {[%emt 0:00:33]} Qxh5 {[%emt 0:00:58] [#]} 29. Qd4 {[%emt 0:00:28]} (29. Nxf4 $142 $1 {[%mdl 512]} Qe8 (29... Rxf4 30. Qxd8+) 30. e3) 29... Rg4 $2 {[%emt 0:02:30]} (29... Qf7) 30. Qd3 $2 {[%emt 0:00:31]} (30. Nxf4 $18 Qf7 31. e3) 30... Bg5 $2 {[%emt 0:05:14]} (30... fxg3 $17 {keeps the pressure on.} 31. fxg3 (31. hxg3 $2 Rxf2 {[%mdl 64] Deflection} 32. Kxf2 Qh2+ 33. Kf1 Qh3+ 34. Kf2 Qh2+ 35. Kf1 Rxg3 $19) 31... Rf2 32. Nf6+ (32. Kxf2 $2 {perishes.}) 32... Bxf6 33. Qd5+ Qxd5 34. cxd5 Rf5 35. Rxc7 Rxd5 36. Rxb7 Rd2) 31. Rcd1 {[%emt 0:00:27]} c6 {[%emt 0:02:02]} (31... fxg3 $11 32. fxg3 (32. hxg3 Rxf2 33. Kxf2 Qh2+ 34. Kf1 Rxg3 $11) 32... Rf2) 32. Nc3 {[%emt 0:00:18]} Qf7 {[%emt 0:02:24]} (32... Be7 $16 {was called for.} 33. Ne4 fxg3 34. fxg3 (34. hxg3 $2 Qe5 $17) 34... Rff4) 33. Rf1 {[%emt 0:00:47]} h5 $2 {[%emt 0:00:12]} (33... Bf6 34. Qf5 Qg6 35. Qxg6+ Rxg6) 34. Ne4 $2 {[%emt 0:00:12]} (34. h3) 34... Be7 {[%emt 0:00:34]} 35. Nd6 {[%emt 0:00:46]} Bxd6 {[%emt 0:01:56]} 36. Qxd6 {[%emt 0:00:05]} Rg6 {[%emt 0:02:45]} 37. Qd3 {[%emt 0:00:58]} h4 {[%emt 0:00:24]} 38. Kg2 {[%emt 0:00:17]} Qe6 {[%emt 0:01:25]} 39. b3 {[%emt 0:00:37]} Rh6 $2 {[%emt 0:02:13]} (39... Rg7 $16 40. c5 Re8) 40. Rh1 {[%emt 0:00:22]} (40. gxf4 $142 Rxf4 41. Rg1 Rg6+ 42. Kh1 Rxg1+ 43. Rxg1+ Rg4 44. Qd8+ Kh7 45. Rxg4 Qxg4 46. f3) 40... Qg4 {[%emt 0:01:45]} (40... Rg6 {was necessary.} 41. Rhe1 Rg7) 41. Qf3 {[%emt 0:00:29]} Qg5 {[%emt 0:02:46]} (41... Qg6 $1 $14 42. Qd3 Qg5) 42. Qd3 $2 {[%emt 0:00:42]} (42. g4 $18) 42... Qg4 $1 {[%emt 0:01:00]} ({Avoid the trap} 42... fxg3 $2 43. hxg3 Rhf6 44. Rxh4 $18) 43. h3 {[%emt 0:00:31]} Qe6 {[%emt 0:01:46]} 44. g4 {[%emt 0:00:17]} Rhf6 {[%emt 0:00:09]} 45. f3 {[%emt 0:00:23]} Qe8 {[%emt 0:00:45]} 46. Rhe1 {[%emt 0:00:22]} Re6 {[%emt 0:00:05]} 47. Rd2 {[%emt 0:00:28]} Re3 {[%emt 0:00:14]} 48. Qd7 {[%emt 0:00:44]} Qe5 $18 {[%emt 0:00:21]} 49. Qd4 {[%emt 0:00:46]} 1/2-1/2

[Event "NOR-ch Youth 2019"]
[Site "Skien"]
[Date "2019.11.10"]
[Round "6.6"]
[White "Gaure, Sigurd Lauvas"]
[Black "Holm, Karl Oskar Magnus"]
[Result "0-1"]
[ECO "B01"]
[WhiteElo "1648"]
[BlackElo "1751"]
[Annotator "NA RC"]
[PlyCount "56"]
[EventDate "2019.11.08"]
[EventType "swiss"]
[EventCountry "NOR"]
[SourceTitle "playchess.com"]
[Source "ChessBase"]
[SourceQuality "1"]
[TimeControl "5400+30"]

1. e4 {[%emt 0:00:00]} d5 {[%emt 0:00:00]} 2. exd5 {[%emt 0:00:00]} Qxd5 {[%emt 0:00:00]} 3. Nc3 {[%emt 0:00:00]} Qa5 {[%emt 0:00:00]} 4. Nf3 {[%emt 0:00:16]} Nf6 {[%emt 0:00:00]} 5. d3 {[%emt 0:00:21]} c6 {[%emt 0:00:12]} 6. h3 {[%emt 0:00:10]} Bf5 {[%emt 0:00:53]} 7. Be2 {[%emt 0:00:30]} e6 {[%emt 0:00:18]} 8. O-O {[%emt 0:00:24]} Bd6 {[%emt 0:02:04]} 9. Bd2 {[%emt 0:00:52]} Qc7 {[%emt 0:00:13]} 10. Nh4 {[%emt 0:00:49]} Bg6 {[%emt 0:00:18]} 11. Bg5 {[%emt 0:00:27]} Nbd7 {[%emt 0:00:32]} 12. Bg4 {[%emt 0:03:32]} O-O-O {[%emt 0:12:22]} 13. f4 {[%emt 0:04:09]} Rde8 {[%emt 0:20:18]} 14. f5 {[%emt 0:03:19]} Nxg4 {[%emt 0:01:36]} 15. Qxg4 {[%emt 0:02:26]} exf5 {[%emt 0:00:28]} 16. Nxf5 {[%emt 0:00:13]} Bxf5 {[%emt 0:00:13]} 17. Rxf5 {[%emt 0:00:30]} h5 {[%emt 0:01:51]} 18. Qc4 {[%emt 0:01:01]} f6 {[%emt 0:01:10]} 19. Bf4 {[%emt 0:01:21]} Bxf4 {[%emt 0:12:52]} 20. Qxf4 {[%emt 0:01:06]} Qb6+ {[%emt 0:06:26]} 21. Kh2 {[%emt 0:03:00]} Qxb2 {[%emt 0:01:16]} 22. Ne4 {[%emt 0:02:12]} Rxe4 {[%emt 0:00:44]} 23. Qxe4 {[%emt 0:00:20]} Qxa1 {[%emt 0:00:33]} 24. Qe7 {[%emt 0:00:32]} Qxa2 {[%emt 0:02:21]} 25. Qxg7 {[%emt 0:00:54]} Qg8 {[%emt 0:00:20]} 26. Qe7 {[%emt 0:00:07]} Qe8 {[%emt 0:00:22]} 27. Qd6 {[%emt 0:01:08]} Rg8 {[%emt 0:01:13]} 28. Qd4 {[%emt 0:02:38]} Qe2 {[%emt 0:00:42]} 0-1

[Event "NOR-ch Youth 2019"]
[Site "Skien"]
[Date "2019.11.10"]
[Round "6.11"]
[White "Vangen, David Luangtep"]
[Black "Unneland, Mathias"]
[Result "0-1"]
[ECO "B20"]
[WhiteElo "1732"]
[BlackElo "2029"]
[Annotator "NA RC"]
[PlyCount "74"]
[EventDate "2019.11.08"]
[EventType "swiss"]
[EventCountry "NOR"]
[SourceTitle "playchess.com"]
[Source "ChessBase"]
[SourceQuality "1"]
[TimeControl "5400+30"]

{[%evp 41,74,-22,-37,-82,0,-56,24,-18,36,0,19,0,52,-11,34,0,43,-22,0,0,14,0,14,0,-18,0,0,-12,31,-456,32767,-484,-484,-29992,-29993]} 1. e4 {[%emt 0:06:12]} c5 {[%emt 0:00:00]} 2. b3 {[%emt 0:00:54]} Nc6 {[%emt 0:00:24]} 3. Bb2 {[%emt 0:03:50]} e5 {[%emt 0:01:12]} 4. Nc3 {[%emt 0:06:33]} d6 {[%emt 0:00:47]} 5. Nge2 {[%emt 0:05:09]} g6 {[%emt 0:05:27]} 6. Nd5 {[%emt 0:04:21]} Bg7 {[%emt 0:02:41]} 7. Nec3 {[%emt 0:01:34]} Nge7 {[%emt 0:02:21]} 8. Qf3 {[%emt 0:05:42]} Nd4 {[%emt 0:11:52]} 9. Bb5+ {[%emt 0:04:00]} Nec6 {[%emt 0:01:16]} 10. Qd3 {[%emt 0:03:44]} a6 {[%emt 0:01:25]} 11. Bxc6+ {[%emt 0:02:06]} bxc6 {[%emt 0:00:09]} 12. Ne3 {[%emt 0:00:13]} a5 {[%emt 0:01:00]} 13. Qf1 {[%emt 0:03:24]} f5 {[%emt 0:05:49]} 14. O-O-O {[%emt 0:03:16]} f4 {[%emt 0:07:58]} 15. Nc4 {[%emt 0:00:24]} O-O {[%emt 0:01:36]} 16. f3 {[%emt 0:00:45]} d5 {[%emt 0:03:49]} 17. Na3 {[%emt 0:01:30]} Rf7 {[%emt 0:01:43]} 18. Na4 {[%emt 0:03:40]} Ba6 {[%emt 0:01:58]} 19. d3 {[%emt 0:01:47]} Bf8 {[%emt 0:00:16]} 20. c4 {[%emt 0:00:22]} Rb8 {[%emt 0:02:00]} 21. Qf2 {[%emt 0:06:26]} Rfb7 {[%emt 0:03:59]} 22. Rd2 {[%emt 0:04:14]} (22. h4 $11 {keeps the balance.}) 22... Bd6 {[%emt 0:00:51]} ({Better is} 22... Qd7 $17 23. Rdd1 dxe4 24. dxe4 Qf7) 23. Re1 {[%emt 0:01:21]} ({White should play} 23. h4 $11) 23... Re7 {[%emt 0:03:04]} ({Black should try} 23... Qd7 $15) 24. Nc3 {[%emt 0:02:18]} Bb7 {[%emt 0:01:34]} 25. Na4 {[%emt 0:00:07]} Ba8 {[%emt 0:00:48]} 26. Nc3 {[%emt 0:01:45]} Qc7 {[%emt 0:02:43]} 27. Na4 {[%emt 0:01:01]} ({White should play} 27. cxd5 $14 Ree8 28. Nc4) 27... Rg7 {[%emt 0:00:32]} 28. Rg1 {[%emt 0:03:07]} Rf8 {[%emt 0:00:15]} 29. Bc3 {[%emt 0:02:27]} g5 {[%emt 0:02:05]} 30. h3 {[%emt 0:00:38]} h5 {[%emt 0:01:00]} 31. Rdd1 {[%emt 0:00:22]} Rf6 {[%emt 0:00:37]} 32. Qd2 {[%emt 0:00:58]} g4 {[%emt 0:03:14]} 33. Bxa5 {[%emt 0:00:42]} Qe7 {[%emt 0:00:47]} 34. Qf2 {[%emt 0:05:09]} Rfg6 {[%emt 0:05:17]} 35. Kd2 $2 {[%emt 0:01:44]} (35. hxg4 $1 $11 {and White stays safe.} hxg4 36. Nc2) 35... gxf3 {[%emt 0:00:34]} 36. gxf3 {[%emt 0:04:36]} Rxg1 {[%emt 0:01:36]} 37. Qe3 {[%emt 0:02:09]} (37. Rxg1 $19 Nxf3+ {[%mdl 64] Deflection} 38. Qxf3 Rxg1 39. Ke2) 37... fxe3+ {[%emt 0:00:17] Nc2} 0-1

[Event "NOR-ch Youth 2019"]
[Site "Skien"]
[Date "2019.11.10"]
[Round "6.12"]
[White "Johannessen, Heine N"]
[Black "Oye-Stromberg, Alexander"]
[Result "1/2-1/2"]
[ECO "E65"]
[WhiteElo "1772"]
[BlackElo "1980"]
[Annotator "NA RC"]
[PlyCount "55"]
[EventDate "2019.11.08"]
[EventType "swiss"]
[EventCountry "NOR"]
[SourceTitle "playchess.com"]
[Source "ChessBase"]
[SourceQuality "1"]
[TimeControl "5400+30"]

1. d4 {[%emt 0:00:00]} Nf6 {[%emt 0:00:00]} 2. Nf3 {[%emt 0:00:05]} c5 {[%emt 0:00:08]} 3. c4 {[%emt 0:03:48]} g6 {[%emt 0:04:29]} 4. g3 {[%emt 0:01:06]} Bg7 {[%emt 0:00:09]} 5. Bg2 {[%emt 0:00:40]} O-O {[%emt 0:00:17]} 6. O-O {[%emt 0:00:57]} Nc6 {[%emt 0:03:55]} 7. Nc3 {[%emt 0:03:17]} d6 {[%emt 0:10:11]} 8. dxc5 {[%emt 0:06:20]} dxc5 {[%emt 0:00:23]} 9. Be3 {[%emt 0:04:50]} Qa5 {[%emt 0:05:41]} 10. Qa4 {[%emt 0:02:21]} Nd7 {[%emt 0:02:52]} 11. Qxa5 {[%emt 0:10:33] E65: King's Indian: Fianchetto: 6...c5 7 0-0 without d5 by White} Nxa5 {[%emt 0:00:12]} 12. Nd2 {[%emt 0:02:40]} Bxc3 {[%emt 0:07:50]} 13. bxc3 {[%emt 0:00:14]} Rb8 {[%emt 0:00:19]} (13... Re8 14. Rfd1 Kg7 15. Bf4 Nb6 16. Rab1 Bg4 17. Rb5 e5 18. Bg5 Nc6 {½-½ (43) Iturrizaga Bonelli,E (2653)-Kovalenko,I (2650) Riga 2014}) 14. Rfd1 {[%emt 0:07:37]} b6 {[%emt 0:02:46]} 15. Bf4 {[%emt 0:04:22]} e5 {[%emt 0:02:28]} 16. Bh6 {[%emt 0:01:17]} Re8 {[%emt 0:07:39]} 17. Ne4 {[%emt 0:03:27]} Nxc4 $146 {[%emt 0:08:37] [#]} ({Predecessor:} 17... Re7 18. Bg5 Re6 {½-½ (30) Frois,A (2346)-Martinez Martin,D (2283) Madrid 2000}) 18. Rxd7 $1 {[%emt 0:07:47] Remove Defender, Decoy} Bxd7 {[%emt 0:00:06]} 19. Nf6+ {[%emt 0:00:17] Double Attack} Kh8 {[%emt 0:00:07]} 20. Nxd7 {[%emt 0:00:39]} Rbd8 {[%emt 0:01:17]} 21. Rd1 {[%emt 0:06:07]} (21. Nf6 $18 {and White stays clearly on top.}) 21... Re7 {[%emt 0:16:28]} 22. Bc6 {[%emt 0:01:41]} Re6 {[%emt 0:04:59]} 23. Bg2 {[%emt 0:10:45]} Re7 {[%emt 0:12:28]} 24. Bc6 {[%emt 0:00:32]} Re6 {[%emt 0:00:07]} 25. Bg2 $2 {[%emt 0:00:30]} Re7 $1 {[%emt 0:04:05]} 26. Bc6 {[%emt 0:00:12]} Re6 $18 {[%emt 0:00:05]} {White has to play} 27. Bb5 $18 Na3 28. Ba4 1/2-1/2

[Event "NOR-ch Youth 2019"]
[Site "Skien"]
[Date "2019.11.10"]
[Round "6.13"]
[White "Tunsjo, Axel"]
[Black "Eliseev, Sergey"]
[Result "1/2-1/2"]
[ECO "B30"]
[WhiteElo "2038"]
[BlackElo "1911"]
[Annotator "NA RC"]
[PlyCount "46"]
[EventDate "2019.11.08"]
[EventType "swiss"]
[EventCountry "NOR"]
[SourceTitle "playchess.com"]
[Source "ChessBase"]
[SourceQuality "1"]
[TimeControl "5400+30"]

{[%evp 25,46,110,125,73,113,72,90,17,12,7,14,0,0,0,0,-8,-11,-10,-8,-13,-10,-12,-6]} 1. e4 {[%emt 0:00:00]} c5 {[%emt 0:00:00]} 2. a3 {[%emt 0:00:00]} Nc6 {[%emt 0:06:52]} 3. Nf3 {[%emt 0:00:31]} Nf6 {[%emt 0:07:04]} (3... g6 4. Bc4 Bg7 5. Nc3 e6 6. O-O Nge7 7. d3 O-O 8. Bf4 d5 9. Ba2 a6 10. Qc1 Nd4 11. Nxd4 cxd4 {1-0 (53) Boros,D (2457)-Blit,J (2374) chess.com INT 2018}) 4. Nc3 {[%emt 0:00:14]} d5 {[%emt 0:07:29]} 5. exd5 {[%emt 0:00:10]} Nxd5 {[%emt 0:00:05]} 6. Bb5 {[%emt 0:00:07] B30: Sicilian: 2...Nc6 3 Bb5, lines without ...g6} Nxc3 {[%emt 0:04:01]} 7. Bxc6+ {[%emt 0:01:23]} bxc6 {[%emt 0:00:39]} 8. bxc3 {[%emt 0:00:04]} Qd5 $146 {[%emt 0:07:39]} ({Predecessor:} 8... c4 9. O-O Qd5 10. Re1 {0-1 (54) Steer,J (1937)-Andersen,S (2115) Budapest 2013}) 9. Qe2 {[%emt 0:08:38]} Be6 {[%emt 0:17:45]} 10. O-O {[%emt 0:11:18]} g5 {[%emt 0:12:43]} 11. d3 {[%emt 0:04:15]} g4 {[%emt 0:10:16]} 12. Ng5 {[%emt 0:01:41]} Bg7 {[%emt 0:06:14]} 13. c4 {[%emt 0:14:37]} Qe5 {[%emt 0:01:02]} 14. Qxe5 {[%emt 0:01:06]} ({White should try} 14. Be3) 14... Bxe5 {[%emt 0:00:01]} 15. Rb1 {[%emt 0:00:11]} Bf5 {[%emt 0:02:48]} 16. Re1 {[%emt 0:05:07]} (16. f3 $16) 16... Bc3 {[%emt 0:02:27]} 17. Re2 {[%emt 0:01:58]} O-O {[%emt 0:06:28]} 18. Rxe7 {[%emt 0:02:33]} Rfe8 {[%emt 0:00:25]} 19. Rxe8+ {[%emt 0:04:21]} Rxe8 {[%emt 0:00:01]} 20. Be3 {[%emt 0:01:01]} f6 {[%emt 0:00:14]} 21. Ne4 {[%emt 0:01:19]} Bxe4 {[%emt 0:00:02]} 22. dxe4 {[%emt 0:00:07]} Rxe4 {[%emt 0:00:22]} 23. Bxc5 {[%emt 0:00:23]} a6 $11 {[%emt 0:00:17]} 1/2-1/2

[Event "NOR-ch Youth 2019"]
[Site "Skien"]
[Date "2019.11.10"]
[Round "6.14"]
[White "Solaas, Timian Martinius Man"]
[Black "Nordquelle, Amelia"]
[Result "0-1"]
[ECO "B52"]
[WhiteElo "1796"]
[BlackElo "1670"]
[Annotator "NA RC"]
[PlyCount "94"]
[EventDate "2019.11.08"]
[EventType "swiss"]
[EventCountry "NOR"]
[SourceTitle "playchess.com"]
[Source "ChessBase"]
[SourceQuality "1"]
[TimeControl "5400+30"]

1. e4 {[%emt 0:00:00]} c5 {[%emt 0:00:22]} 2. Nf3 {[%emt 0:00:00]} d6 {[%emt 0:00:45]} 3. Bb5+ {[%emt 0:00:00]} Bd7 {[%emt 0:00:24]} 4. Bxd7+ {[%emt 0:00:00]} Nxd7 {[%emt 0:00:34]} 5. O-O {[%emt 0:00:45]} g6 {[%emt 0:01:42]} 6. c3 {[%emt 0:04:29]} c4 {[%emt 0:02:41]} 7. b3 {[%emt 0:13:13]} Nc5 {[%emt 0:04:15]} 8. bxc4 {[%emt 0:06:02]} Nxe4 {[%emt 0:01:03]} 9. d3 {[%emt 0:02:39]} Nc5 {[%emt 0:02:49]} 10. d4 {[%emt 0:01:26]} Ne4 {[%emt 0:00:42]} 11. Qd3 {[%emt 0:01:36]} f5 {[%emt 0:02:01]} 12. d5 {[%emt 0:10:53]} Bg7 {[%emt 0:03:35]} 13. Nd4 {[%emt 0:03:17]} Nc5 {[%emt 0:02:57]} 14. Qe2 {[%emt 0:02:22]} Nf6 {[%emt 0:02:12]} 15. f3 {[%emt 0:08:52]} Nfd7 {[%emt 0:06:39]} 16. Ba3 {[%emt 0:03:49]} O-O {[%emt 0:18:32]} 17. Nd2 {[%emt 0:07:54]} Na4 {[%emt 0:10:32]} 18. Qd3 {[%emt 0:12:22]} Ndc5 {[%emt 0:09:44]} 19. Bxc5 {[%emt 0:01:45]} Nxc5 {[%emt 0:00:31]} 20. Qe2 {[%emt 0:01:17]} Qa5 {[%emt 0:11:28]} 21. Rfc1 {[%emt 0:02:12]} Na4 {[%emt 0:07:51]} 22. N2b3 {[%emt 0:05:12]} Qb6 {[%emt 0:01:51]} 23. Qd3 {[%emt 0:05:38]} Rac8 {[%emt 0:03:25]} 24. Rab1 {[%emt 0:01:04]} Rfe8 {[%emt 0:00:55]} 25. Kh1 {[%emt 0:00:41]} Qa6 {[%emt 0:00:53]} 26. Nd2 {[%emt 0:02:39]} Nb6 {[%emt 0:01:19]} 27. Nb5 {[%emt 0:00:46]} Bh6 {[%emt 0:00:32]} 28. Re1 {[%emt 0:02:00]} Qxa2 {[%emt 0:01:45]} 29. Nb3 {[%emt 0:00:58]} Rxc4 {[%emt 0:01:10]} 30. Nxd6 {[%emt 0:00:28]} exd6 {[%emt 0:01:05]} 31. Rxe8+ {[%emt 0:00:02]} Kf7 {[%emt 0:00:16]} 32. Rbe1 {[%emt 0:00:37]} Bg5 {[%emt 0:00:49]} 33. Nc1 {[%emt 0:00:55]} Bxc1 {[%emt 0:00:32]} 34. R1e7+ {[%emt 0:00:34]} Kf6 {[%emt 0:00:09]} 35. f4 {[%emt 0:00:29]} Rxf4 {[%emt 0:00:15]} 36. Re6+ {[%emt 0:00:14]} Kg5 {[%emt 0:00:12]} 37. Qg3+ {[%emt 0:00:26]} Rg4 {[%emt 0:00:22]} 38. h4+ {[%emt 0:00:28]} Kh6 {[%emt 0:00:35]} 39. Qh3 {[%emt 0:00:13]} Qf2 {[%emt 0:00:18]} 40. Re2 {[%emt 0:01:09]} Qf1+ {[%emt 0:00:39]} 41. Kh2 {[%emt 0:00:06]} Bf4+ {[%emt 0:00:39]} 42. g3 {[%emt 0:00:09]} Bxg3+ {[%emt 0:00:25]} 43. Qxg3 {[%emt 0:00:09]} Rxg3 {[%emt 0:00:12]} 44. Kxg3 {[%emt 0:00:35]} Nxd5 {[%emt 0:00:20]} 45. Re1 {[%emt 0:00:36]} f4+ {[%emt 0:00:27]} 46. Kh2 {[%emt 0:00:17]} Qf2+ {[%emt 0:00:13]} 47. Kh3 {[%emt 0:00:36]} Qg3# {[%emt 0:00:05]} 0-1